Cogmind - Beta 10.2 @@@ ROGUE MODE // 2021.04.02 @ 00:17:19 Player: gammafunk Result: Self-destructed Performance ------------- Evolutions (1) 500 Regions Visited (3) 600 Robots Destroyed (63) 315 Value Destroyed (1491) 1491 Prototype IDs (0) 0 Alien Tech Used (0) 0 Bonus (0) 0 TOTAL SCORE: 2906 Bonus ------- None Cogmind --------- Core Integrity 373/400 Matter 264/300 Energy 250/250 System Corruption 0% Temperature Cool (36) Movement Treading (180) Ox1 Location -9/Materials Parts ------- > --- POWER (1) -------- Ion Engine > --- PROPULSION (2) --- Light Treads Light Treads > --- UTILITY (3) ------ High-capacity Storage Unit Targeting Computer Light Armor Plating > --- WEAPON (3) ------- Heavy Assault Rifle Heavy Assault Rifle Heavy Assault Rifle > --- INVENTORY (12) --- Light Ion Engine Light Treads Light Treads Light Treads Signal Interpreter Medium Armor Plating Medium Armor Plating Hacking Suite Heavy Assault Rifle Heavy Assault Rifle Rocket Launcher Mining Laser Peak State ------------ > --- POWER ------------ Ion Engine > --- PROPULSION ------- Light Treads Light Treads > --- UTILITY ---------- High-capacity Storage Unit Targeting Computer Medium Armor Plating > --- WEAPON ----------- Heavy Assault Rifle Heavy Assault Rifle Heavy Assault Rifle > --- INVENTORY -------- Light Ion Engine Light Treads Light Treads Light Treads Light Treads Medium Armor Plating Medium Armor Plating Hacking Suite Heavy Assault Rifle Heavy Assault Rifle Rocket Launcher Mining Laser [Rating: 14] Favorites ----------- Power Ion Engine Engine Ion Engine Propulsion Light Treads Treads Light Treads Utility High-capacity Storage Unit Device Tractor Beam Storage High-capacity Storage Unit Processor Targeting Computer Protection Medium Armor Plating Weapon Heavy Assault Rifle Energy Gun EM Pulse Gun Ballistic Gun Heavy Assault Rifle Launcher Rocket Launcher Special Weapon Mining Laser Build | -11 -10 -10 -9 ------- Run | Scr Mat Min Mat Slots Evolved 2 | . . . 2 Power . | . . . . Propulsion . | . . . . Utility 1 | . . . 1 Weapon 1 | . . . 1 Parts Attached 43 | 7 16 6 14 Power 3 | 1 2 . . Engine 3 | 1 2 . . Core . | . . . . Reactor . | . . . . Propulsion 13 | 2 5 . 6 Treads 13 | 2 5 . 6 Leg . | . . . . Wheel . | . . . . Hover . | . . . . Flight . | . . . . Utility 10 | 2 3 2 3 Device 1 | 1 . . . Storage 2 | 1 1 . . Processor 1 | . . . 1 Hackware . | . . . . Protection 6 | . 2 2 2 Artifact . | . . . . Weapon 17 | 2 6 4 5 Energy Gun 4 | 1 3 . . Energy Cannon . | . . . . Ballistic Gun 10 | 1 3 2 4 Ballistic Cannon . | . . . . Launcher 2 | . . 1 1 Special Weapon 1 | . . 1 . Impact Weapon . | . . . . Slashing Weapon . | . . . . Piercing Weapon . | . . . . Special Melee Weapon . | . . . . Unidentified Prototypes . | . . . . Parts Lost 8 | . 7 1 . Power 1 | . 1 . . Propulsion . | . . . . Utility 3 | . 2 1 . Weapon 4 | . 4 . . Highest Loss Streak 4 | . 4 1 . Average Slot Usage (%) 98 | . 98 99 95 Engine 13 | . 13 14 11 Treads 26 | . 28 28 22 Storage 15 | . 18 14 11 Processor 1 | . . . 6 Protection 10 | . 7 13 11 Energy Gun 4 | . 8 . . Ballistic Gun 23 | . 18 26 32 Naked Turns . | . . . . Heaviest Build 54 | 11 50 51 54 Greatest Support 40 | 40 40 40 40 Greatest Overweight (x) 1 | . 1 1 1 Average Overweight (x) . | . . 1 1 Largest Inventory Capacity 14 | 6 14 12 12 Average Capacity 11 | 5 10 12 12 Most Carried 12 | 2 12 12 12 Average Carried 9 | 1 7 11 11 Final Capacity 12 | 6 12 12 12 Final Carried 12 | 2 12 11 12 Class Distribution -------------------- 78% | Mutant 7% | Scavenger-Gunner 6% | Tank 4% | Gunner Dominant Class ---------------- Mutant | -10/Materials Mutant | -10/Mines Scavenger-Gunner | -9/Materials Resources | -11 -10 -10 -9 ----------- Run | Scr Mat Min Mat Matter Collected 1229 | 273 217 284 455 Remotely 50 | 46 4 . . Salvage Created 2118 | 100 538 823 657 Parts 136 | 3 44 43 46 Haulers Intercepted 3 | . 2 . 1 Recyclers Shooed 1 | . 1 . . Parts Field Recycled . | . . . . Retrieved Matter . | . . . . Parts Self-Destructed . | . . . . Prevented . | . . . . Kills | -11 -10 -10 -9 ------- Run | Scr Mat Min Mat Combat Hostiles Destroyed 41 | . 12 19 10 Melee 1 | . 1 . . Guns 35 | . 10 15 10 AOE 5 | . 1 4 . Classes Destroyed 11 | 1 8 1 1 Worker 2 | . 1 1 . Builder 1 | . 1 . . Tunneler 6 | . 1 5 . Hauler 3 | . 2 . 1 Recycler 4 | 1 . 2 1 Operator 3 | . 1 . 2 Watcher 4 | . 2 . 2 Swarmer 7 | . 4 3 . Grunt 28 | . 8 15 5 Sentry 5 | . . . 5 Assembled 1 | . . 1 . Best Kill Streak 13 | 1 6 13 3 Combat Bots Only 7 | . 5 7 3 Max Kills in Single Turn 5 | 1 1 5 1 Gunslinging . | . . . . Exploded 2 | . 1 2 . Melee 1 | . 1 . . Uniques/NPCs Destroyed . | . . . . Combat | -11 -10 -10 -9 -------- Run | Scr Mat Min Mat Damage Taken 1698 | . 914 473 311 Core 262 | . 148 87 27 Absorbed by Shields . | . . . . Core Remaining (%) 53 | 100 . 6 . Volleys Fired 152 | 3 75 34 40 Largest 3 | 2 2 2 3 Hottest 100 | 70 90 100 69 Shots Fired 335 | 6 147 62 120 Gun 329 | 6 147 56 120 Cannon . | . . . . Launcher 5 | . . 5 . Special 1 | . . 1 . Kinetic 241 | 3 62 56 120 Thermal 59 | 3 55 1 . Explosive 5 | . . 5 . Electromagnetic 30 | . 30 . . Robot Hit Streak 18 | 2 11 18 15 Robot Miss Streak 7 | 1 7 3 3 Penetration Max . | . . . . Secondary Targets 6 | . 4 2 . Max Gunslinging Chain 1 | . 1 1 . Shots Hit Robots 214 | 3 89 45 77 Core Hits 94 | 3 30 36 25 Critical Hits 1 | . 1 . . Critical Kills . | . . . . Critical Parts Destroyed 1 | . 1 . . Melee Attacks . | . . . . Impact . | . . . . Slashing . | . . . . Piercing . | . . . . Sneak Attacks . | . . . . Combat Hostiles . | . . . . Follow-up Attacks . | . . . . Damage Inflicted 3516 | 32 1116 1255 1113 Guns 2691 | 30 903 650 1108 Cannons . | . . . . Explosions 759 | . 160 599 . Melee . | . . . . Ramming 66 | 2 53 6 5 Kinetic 2041 | 17 266 650 1108 Thermal 573 | 13 560 . . Explosive 599 | . . 599 . Electromagnetic 237 | . 237 . . Impact . | . . . . Slashing . | . . . . Piercing . | . . . . Highest Corruption 2 | . 2 2 . Average Corruption 2 | . 2 2 . Corruption Purged . | . . . . Effects 16 | . 8 8 . Message Errors 7 | . 3 4 . Energy Discharges 5 | . 3 2 . Data Loss (minor) 3 | . 2 1 . Targeting Errors 1 | . . 1 . Overload Shots . | . . . . Overflow Damage 33 | . 33 . . Projectiles . | . . . . Explosions 33 | . 33 . . Melee . | . . . . Knockbacks 1 | . 1 . . Impact 1 | . 1 . . Kinetic . | . . . . Secondary . | . . . . Self-Inflicted Damage 7 | . 7 . . Shots 1 | . 1 . . Rammed 11 | 1 7 1 2 Targets Rammed 15 | 1 11 1 2 Kicked . | . . . . Crushed 4 | . 4 . . Highest Temperature 421 | 50 421 32 67 Average Temperature 62 | 26 95 7 17 Received Heat Transfer 576 | . 270 162 144 Effects 5 | . 5 . . Shutdowns 1 | . 1 . . Energy Bleed 2 | . 2 . . Interference 2 | . 2 . . Siege Activations . | . . . . Robots Corrupted . | . . . . Combat Hostiles . | . . . . Parts Fried 1 | . 1 . . Impact Corruptions . | . . . . Robots Melted . | . . . . Combat Hostiles . | . . . . Parts Melted . | . . . . Heat Transferred 1371 | 37 1334 . . Parts Sabotaged . | . . . . Parts Stolen . | . . . . Parts Stripped . | . . . . Power Chain Reactions 3 | . 3 . . Missiles Intercepted . | . . . . Alert | -11 -10 -10 -9 ------- Run | Scr Mat Min Mat Peak Influence 354 | 5 350 195 354 Initial 74 | . 3 . 74 Average 77 | 1 51 78 150 Maximum Alert Level 1 | . 1 . 1 Low Security (%) 94 | 100 96 100 81 Level 1 5 | . 3 . 18 Level 2 . | . . . . Level 3 . | . . . . Level 4 . | . . . . Level 5 . | . . . . High Security . | . . . . Max Security . | . . . . Squads Dispatched 5 | . 2 . 3 Investigation . | . . . . Extermination . | . . . . Reinforcement 5 | . 2 . 3 Assault . | . . . . Garrison . | . . . . Intercept . | . . . . Construction Impeded . | . . . . Haulers Reinforced . | . . . . Stealth | -11 -10 -10 -9 --------- Run | Scr Mat Min Mat Distress Signals 3 | . 2 1 . Communications Jammed . | . . . . Distress Signals . | . . . . Times Spotted 75 | . 34 21 20 Peak Tracking Total 6 | . 6 5 4 Tactical Retreats 4 | . 2 . 2 Traps | -11 -10 -10 -9 ------- Run | Scr Mat Min Mat Traps Triggered 2 | . 2 . . Indirectly . | . . . . Trap Hack Attempts . | . . . . Triggered . | . . . . Disarmed . | . . . . Reprogrammed . | . . . . Reused . | . . . . Traps Extracted . | . . . . Installed . | . . . . Triggered . | . . . . Machines | -11 -10 -10 -9 ---------- Run | Scr Mat Min Mat Machines Disabled 4 | . 2 . 2 Max in Single Turn 1 | . 1 . 1 Machines Sabotaged . | . . . . Garrisons Compromised . | . . . . Overloaded Fab Kills . | . . . . Fab Network Shutdowns . | . . . . Hacking | -11 -10 -10 -9 --------- Run | Scr Mat Min Mat Machines Accessed 9 | . 7 . 2 Terminals 8 | . 6 . 2 Fabricators . | . . . . Repair Stations 1 | . 1 . . Recycling Units . | . . . . Scanalyzers . | . . . . Garrison Access . | . . . . Total Hacks 27 | . 22 . 5 Successful 11 | . 9 . 2 Failed 15 | . 12 . 3 Catastrophic 2 | . 2 . . Database Lockouts 1 | . 1 . . Manual 17 | . 16 . 1 Terminals 22 | . 17 . 5 Fabricators . | . . . . Repair Stations 5 | . 5 . . Recycling Units . | . . . . Scanalyzers . | . . . . Garrison Access . | . . . . Terminal Hacks 4 | . 3 . 1 Robot Analysis 1 | . 1 . . Terminal Index 1 | . 1 . . Unreport Threat 1 | . 1 . . Locate Traps 1 | . . . 1 Fabricator Hacks . | . . . . Repair Station Hacks 4 | . 4 . . Scan Component 2 | . 2 . . Repair 2 | . 2 . . Recycling Unit Hacks . | . . . . Scanalyzer . | . . . . Garrison Access Hacks . | . . . . Unauthorized Hacks 3 | . 2 . 1 Terminals 3 | . 2 . 1 Botnet 3 | . 2 . 1 Fabricators . | . . . . Repair Stations . | . . . . Recycling Units . | . . . . Scanalyzers . | . . . . Garrison Access . | . . . . Data Cores Recovered . | . . . . Used . | . . . . Hacking Detections 9 | . 7 . 2 Full Trace Events . | . . . . Feedback Events . | . . . . Feedback Blocked . | . . . . Robot Schematics Acquired . | . . . . Robots Built . | . . . . Matter . | . . . . Time . | . . . . Total Robot Build Rating . | . . . . Part Schematics Acquired . | . . . . Parts Built . | . . . . Matter . | . . . . Time . | . . . . Total Part Build Rating . | . . . . Parts Repaired 2 | . 2 . . Time 52 | . 52 . . Parts Recycled . | . . . . Recycled Matter . | . . . . Retrieved Matter . | . . . . Retrieved Components . | . . . . Parts Scanalyzed . | . . . . Part Schematics Acquired . | . . . . Parts Damaged . | . . . . Bothacking | -11 -10 -10 -9 ------------ Run | Scr Mat Min Mat Used RIF Installer . | . . . . Robots Hacked . | . . . . Non-combat . | . . . . Combat . | . . . . Robot Hacks Applied . | . . . . Relay Couplers Released . | . . . . Robots Rewired . | . . . . Allies Hacked . | . . . . Hacks Repelled . | . . . . Allies | -11 -10 -10 -9 -------- Run | Scr Mat Min Mat Total Allies . | . . . . Largest Group . | . . . . Highest-Rated Group . | . . . . Highest-Rated Ally . | . . . . Total Orders . | . . . . Ally Attacks . | . . . . Total Damage . | . . . . Kills . | . . . . Allies Corrupted . | . . . . Allies Melted . | . . . . Intel | -11 -10 -10 -9 ------- Run | Scr Mat Min Mat Robot Analysis Total 1 | . 1 . . Derelict Logs Recovered 1 | . . 1 . Drone Launches . | . . . . Drone Recoveries . | . . . . Exploration | -11 -10 -10 -9 ------------- Run | Scr Mat Min Mat Turns Passed 3782 | 109 1757 1188 728 Spaces Moved 1727 | 58 809 561 299 Core 5 | 5 . . . Treads 1722 | 53 809 561 299 Legs . | . . . . Wheels . | . . . . Hover . | . . . . Flight . | . . . . Fastest Speed 50 | 50 160 180 180 Average Speed 176 | 150 174 180 180 Slowest Speed 180 | 160 180 180 180 Overloaded Moves . | . . . . Propulsion Burnouts . | . . . . Robots Hopped . | . . . . Cave-ins Triggered . | . . . . Exploration Rate (%) 54 | 4 96 82 36 Regions Visited 3 Branch Regions 1 Pre-discovered Areas 1 | . . 1 . Known Exits Taken . | . . . . Unknown Exits Taken 3 | 1 1 1 . Scrap Searched 1 | . . 1 . Spaces Dug . | . . . . Terrain Destroyed 51 | . 37 14 . Melee . | . . . . Projectile . | . . . . AOE 51 | . 37 14 . Terrain Rammed . | . . . . Walls Destroyed . | . . . . Machines Disabled . | . . . . Actions | -11 -10 -10 -9 --------- Run | Scr Mat Min Mat Total 2153 | 70 1008 673 402 Wait 171 | . 68 70 33 Move 1724 | 57 808 560 299 Hop . | . . . . Pick Up 22 | 2 16 1 3 Fast Attach 17 | 7 8 1 1 Attach 3 | . 1 1 1 Detach 2 | . 2 . . Swap 23 | . 7 4 12 Drop 24 | . 12 1 11 Fire 152 | 3 75 34 40 Melee . | . . . . Ram . | . . . . Kick . | . . . . Crush 15 | 1 11 1 2 Escape Stasis . | . . . . Rewire . | . . . . Trap . | . . . . Miscellaneous . | . . . . Route ------- -11/Scrapyard -10/Materials (discovered 5 exits: *Mat x3 / [*Min x2]) -10/Mines (discovered 2 exits: *Mat / [*Exi]) -9/Materials History --------- Turn | Location | Event 5 | -11/Scrapyard | Discovered new exit (range 15) 110 | -11/Scrapyard | Entered Materials 220 | -10/Materials | Discovered new exit (range 12) 301 | -10/Materials | Build established: Mutant 453 | -10/Materials | Core integrity fell below 50% 560 | -10/Materials | Lost 4 parts (1p1u2w) 620 | -10/Materials | Discovered new exit (range 15) 671 | -10/Materials | Discovered new exit (range 15) 1149 | -10/Materials | Discovered new exit (range 15) 1256 | -10/Materials | Central database locked down 1518 | -10/Materials | Repaired Lgt. Treads 1546 | -10/Materials | Repaired Lgt. Treads 1631 | -10/Materials | Discovered new exit (range 14) 1867 | -10/Materials | Entered Mines 1941 | -10/Mines | Received a Rocket Launcher from a helpful Derelict 1958 | -10/Mines | Excavation squad dispatched 1958 | -10/Mines | A large section of the Mines collapsed 2208 | -10/Mines | Excavation squad dispatched 2223 | -10/Mines | A weapon hastily lodged in a ceiling crevice suddenly fell to the ground 2458 | -10/Mines | Excavation squad dispatched 2543 | -10/Mines | Core integrity fell below 20% 2577 | -10/Mines | Destroyed 7 combat bots 2708 | -10/Mines | Excavation squad dispatched 2845 | -10/Mines | Deemed a non-threat by the Exiles lab entrance 2845 | -10/Mines | Discovered new exit (range 5) 2909 | -10/Mines | Learned location of Storage (-8) 3008 | -10/Mines | Discovered new exit (range 13) 3055 | -10/Mines | Entered Materials 3055 | -9/Materials | Evolved 2 slots: Utility x1, Weapon x1 3783 | -9/Materials | Self-destructed Last Messages --------------- Dropped Hvy. Assault Rifle. Dropped Lgt. Treads. Acquired Lgt. Treads. Dropped Lgt. Treads. Acquired Lgt. Treads. Acquired 50 matter. G-34 Mercenary destroyed. Acquired 18 matter. Y-45 Defender destroyed. ALERT: Hostiles spotted, dispatching reinforcements to Terminal M011. Y-45 Defender destroyed. Dropped Lgt. Treads. Acquired 46 matter. Dropped Lgt. Treads. Acquired 10 matter. Dropped Lgt. Armor Plating. Acquired 1 matter. Terminal disabled. [Achievement: Back For More] Map ----- +----------------------------------------------------+ | #####+####### ############ #?"""?? | | [=! # ""??? | | * + ????? | | ! #?????? | | ##/####### ##+####### #?????? | | #=% ######## # #?????? | | #=""" #??????#= + #?????? | | #%"Y" #??????# ##### #?????? | | ? #[! ##?????#!! #???# ####### | | ?? # [ #?????#!! #???# ## # | | ???# ! ##?????#! #???# ## T # | | ???# """ #??????# #???# ## # | | ???# """ #??????# #??## ## ! # | | ???# """ #??????# #??# ![# # | | ???# #??????##########??#*%=+= # | | ???# ] #?????????########?#! =# # | | ???#########?????????# #?##%## # | | ?????????????????????# #??#*## # | | ?????????????????????# """" #??#/####### | | ?????????????????????# """" #??#[#?????? | | ?????????????????????# """" ####%#?????? | | ?????????????????????? ?# *#?????? | | ??????????????????????##+##?# ####?????? | | ??????????????????????# **### #????????? | | ??????????????????????#!%= =!!#????????? | | ??????????????????????# !@#####????????? | | ??????????????????????##g##????????????? | | ???????????????????????# #?????????????? | | ???????????????????????# #?????????????? | | ??????????????????????? ?????????????? | | ??????????????????????? ?????????????? | | ??????????????????????# #????????????? | | ??????????????????????##/##????????????? | | ??????????????????????? ?????????????? | | ??????????????????????? ?????????????? | | ??????????????????????? ?????????????? | | ??????????????????????? ?????????????? | | ??????????????????????? ?????????????? | | ??????????????????????? ?????????????? | | ???????????????????????###?????????????? | | ???????????????????????????????????????? | | ???????????????????????????????????????? | | ???????????????????????????????????????? | | ???????????????????????????????????????? | | ???????????????????????????????????????? | | ???????????????????????????????????????? | | ???????????????????????????????????????? | | ???????????????????????????????????????? | | ???????????????????????????????????????? | | ???????????????????????????????????????? | +----------------------------------------------------+ Best States ------------- Heat Dissipation 28 Energy Generation 10 Energy Capacity 250 Matter Stores 300 Matter Capacity 300 Sight Range 16 Terrain Scan Density 10 Armor Coverage 225 Evasion (%) 40 Targeting Accuracy 5 Recoil Reduction 2 Item Schematics ----------------- None Robot Schematics ------------------ None Fabricated ------------ Nothing Alien Tech Used ----------------- None Achievements -------------- Back For More Challenges ------------ None Game ------ Seed NovaFrostAutocannon Manual? 0 Play Time 00:23:17 Cumulative 105.4 hours Start 2021.04.01 @ 23:57:30 End 2021.04.02 @ 00:17:19 Sessions 1 Manual Loads 0 Difficulty Rogue Special Mode None Game No. 50 Rogue 50 Adventurer 0 Explorer 0 Win Type - Total 1 Types 0/0/1/0/0/0/0/0/0 Lore% 50 Gallery% 50 Achievement% 51 Wizard Run 0 Options --------- ASCII 0 Keyboard 1 Movement Vi Keybinds 0 Fullscreen 2 Font 12/Smallcaps Map View 60x54 Tactical HUD 0 Map Filters NONE Filters NONE Steam 1 RUN: 5ea4b8d8-5627-4c50-ad91-88af1ee1610d